bitfinex/quotes_BTCUSD_20250920
["timestamp","ask_amount","ask_price","bid_price","bid_amount"]
[1758349054066,1.05838523,115840.0,115830.0,0.55603052]
[1758349056608,1.05838523,115840.0,115830.0,0.52919052]
[1758349060422,1.05838523,115840.0,115830.0,0.55194052]
[1758349061909,1.03366523,115840.0,115830.0,0.55194052]
[1758349064390,1.03366523,115840.0,115830.0,0.55400052]
[1758349065172,1.03061523,115840.0,115830.0,0.55400052]
[1758349065787,1.02851523,115840.0,115830.0,0.55725052]
[1758349069787,0.38377273,115840.0,115830.0,0.55725052]
[1758349069994,0.70613417,115840.0,115830.0,0.55725052]
[1758349070212,0.38377273,115840.0,115830.0,0.55725052]
[1758349070418,0.70613417,115840.0,115830.0,0.55725052]
[1758349071265,0.70816417,115840.0,115830.0,0.55400052]
[1758349085747,0.71130417,115840.0,115830.0,0.55400052]
[1758349092173,0.71130417,115840.0,115830.0,0.82204052]
[1758349092930,0.71130417,115840.0,115830.0,0.55400052]
[1758349093249,0.73530417,115840.0,115830.0,0.81998052]
[1758349094874,0.71130417,115840.0,115830.0,0.81998052]
[1758349095541,0.73530417,115840.0,115830.0,0.81998052]
[1758349102492,0.71130417,115840.0,115830.0,0.81998052]
[1758349106045,0.71130417,115840.0,115830.0,0.81994052]
[1758349106794,0.73446417,115840.0,115830.0,0.81994052]
[1758349112714,0.73446415,115840.0,115830.0,0.81994052]
[1758349115959,0.71130415,115840.0,115830.0,0.81994052]
[1758349128244,0.71130415,115840.0,115830.0,0.82204052]
[1758349131823,1.03370099,115840.0,115830.0,0.82204052]
[1758349137190,1.03370099,115840.0,115830.0,0.55404052]
[1758349137402,1.03370099,115840.0,115830.0,0.82204052]
[1758349139660,1.03370102,115840.0,115830.0,0.82204052]
[1758349141897,0.38894274,115840.0,115830.0,0.82204052]
[1758349142101,1.22955295,115840.0,115830.0,0.79719052]
[1758349145720,1.20635295,115840.0,115830.0,0.35652369]
[1758349145938,1.25614317,115840.0,115830.0,0.62452369]
[1758349146379,1.57852231,115840.0,115830.0,0.62452369]
[1758349146592,1.25614317,115840.0,115830.0,0.62452369]
[1758349147464,1.25614013,115840.0,115830.0,0.62452369]
[1758349147717,1.25614013,115840.0,115830.0,0.62448369]
[1758349148117,1.25614013,115840.0,115830.0,0.35652369]
[1758349148324,1.25614013,115840.0,115830.0,0.62448369]
[1758349148768,1.25614013,115840.0,115830.0,0.35638369]
[1758349149509,1.52414013,115840.0,115830.0,0.35638369]
[1758349150679,1.52414013,115840.0,115830.0,0.08842369]
[1758349154473,1.52413705,115840.0,115830.0,0.08842369]
[1758349159598,0.38376662,115840.0,115830.0,0.28887052]
[1758349160033,0.70614576,115840.0,115830.0,0.28887052]
[1758349163360,0.87879769,115840.0,115830.0,0.28887052]
[1758349164663,0.70614576,115840.0,115830.0,0.28887052]
[1758349166859,0.88075769,115840.0,115830.0,0.28575052]
[1758349167064,1.20313683,115840.0,115830.0,0.28575052]
[1758349173134,1.20608683,115840.0,115830.0,0.28575052]
[1758349182176,1.2060881,115840.0,115830.0,0.28575052]
[1758349183721,1.2060881,115840.0,115830.0,0.26109052]
[1758349183918,0.70810703,115840.0,115830.0,0.26316052]
[1758349184085,0.87879896,115840.0,115830.0,0.29092052]
[1758349184930,1.2011781,115840.0,115830.0,0.29092052]
[1758349188376,1.2031381,115840.0,115830.0,0.29092052]
[1758349188565,1.2031381,115840.0,115830.0,0.28786052]
[1758349189011,1.2060881,115840.0,115830.0,0.28786052]
[1758349192756,1.2299981,115840.0,115830.0,0.26109052]
[1758349193885,0.90761431,115840.0,115830.0,0.26109052]
[1758349195787,1.17557431,115840.0,115830.0,0.52905052]
[1758349195961,1.17557431,115840.0,115830.0,0.26109052]
[1758349196201,1.17557431,115840.0,115830.0,0.52905052]
[1758349197021,1.15166431,115840.0,115830.0,0.26109052]
[1758349197218,1.17600431,115840.0,115830.0,0.26109052]
[1758349198781,0.85362982,115840.0,115830.0,0.08842369]
[1758349199022,1.17600431,115840.0,115830.0,0.26109052]
[1758349200982,1.17600431,115840.0,115830.0,0.52937052]
[1758349201189,1.17600885,115840.0,115830.0,0.52937052]
[1758349201792,1.20259907,115840.0,115830.0,0.08842369]
[1758349212153,0.88022458,115840.0,115830.0,0.08842369]
[1758349212463,1.20259907,115840.0,115830.0,0.08842369]
[1758349212679,1.20259478,115840.0,115830.0,0.08842369]
[1758349220585,1.17825478,115840.0,115830.0,0.08842369]
[1758349220762,1.20313478,115840.0,115830.0,0.08842369]
[1758349221488,0.93517478,115840.0,115830.0,0.08842369]
[1758349221624,1.20333478,115840.0,115830.0,0.08842369]
[1758349224482,1.19466885,115840.0,115830.0,0.08842369]
[1758349224742,1.19466976,115840.0,115830.0,0.08842369]
[1758349224882,1.16978976,115840.0,115830.0,0.08842369]
[1758349225101,1.13828954,115840.0,115830.0,0.09364369]
[1758349225307,1.13828954,115840.0,115830.0,0.11790369]
[1758349225492,1.14338954,115840.0,115830.0,0.11479369]
[1758349225692,0.82101505,115840.0,115830.0,0.11268369]
[1758349225956,1.14338954,115840.0,115830.0,0.08842369]
[1758349226911,1.14338954,115840.0,115830.0,0.11317369]
[1758349227340,1.14338954,115840.0,115830.0,0.11520369]
[1758349228296,1.14034954,115840.0,115830.0,0.09045369]
[1758349228503,1.14034954,115840.0,115830.0,0.11819369]
[1758349229115,1.14034954,115840.0,115830.0,0.11520369]
[1758349231322,1.14333954,115840.0,115830.0,0.11520369]
[1758349231793,1.16808954,115840.0,115830.0,0.08842369]
[1758349235569,0.84571505,115840.0,115830.0,0.08842369]
[1758349235789,1.16808954,115840.0,115830.0,0.08842369]
[1758349236221,1.16804954,115840.0,115830.0,0.08842369]
[1758349240930,1.14329954,115840.0,115830.0,0.11520369]
[1758349241422,0.87012954,115840.0,115830.0,0.26611052]
[1758349241645,0.87012954,115840.0,115830.0,0.29086052]
[1758349241646,1.13828954,115840.0,115830.0,0.29086052]
[1758349243865,1.14710635,115840.0,115830.0,0.29086052]
[1758349245321,1.14911635,115840.0,115830.0,0.28787052]
[1758349251807,1.15210635,115840.0,115830.0,0.28787052]
[1758349253872,1.47450346,115840.0,115830.0,0.28787052]
[1758349256832,1.20634346,115840.0,115830.0,0.28787052]
[1758349256978,1.47446346,115840.0,115830.0,0.28787052]
[1758349257819,1.46564665,115840.0,115830.0,0.28787052]
[1758349259008,0.82087505,115840.0,115830.0,0.28787052]
[1758349259224,1.46564665,115840.0,115830.0,0.28787052]
[1758349260559,1.48861665,115840.0,115830.0,0.28787052]
[1758349271975,1.04784472,115840.0,115830.0,0.28787052]
[1758349272189,1.48857665,115840.0,115830.0,0.28787052]
[1758349273928,1.48857665,115840.0,115830.0,0.26109052]
[1758349289906,0.37510312,115840.0,115830.0,0.29067052]
[1758349290366,0.03510312,115840.0,115830.0,0.29067052]
[1758349290636,0.0290297,115840.0,115830.0,0.29067052]
[1758349291911,0.0290297,115840.0,115830.0,0.29077052]
[1758349293767,0.0290297,115840.0,115830.0,0.55881052]
[1758349298667,0.003076,115840.0,115830.0,0.55881052]
[1758349299952,0.003076,115840.0,115830.0,0.82691052]
[1758349326176,0.003076,115840.0,115830.0,0.85706242]
[1758349327274,0.003076,115840.0,115830.0,0.85406242]
[1758349327661,7.6e-05,115840.0,115830.0,0.85406242]
[1758349327869,7.6e-05,115840.0,115830.0,0.94738242]
[1758349328541,7.6e-05,115840.0,115830.0,0.95338242]
[1758349329186,7.6e-05,115840.0,115830.0,0.96038242]
[1758349330274,7.6e-05,115840.0,115830.0,0.69234242]
[1758349330506,7.6e-05,115840.0,115830.0,0.96038242]
[1758349330937,7.6e-05,115840.0,115830.0,0.96050242]
[1758349333427,7.6e-05,115840.0,115830.0,0.69234242]
[1758349333581,0.32234824,115840.0,115830.0,0.96050242]
[1758349339846,0.32234824,115840.0,115830.0,0.93606242]
[1758349340111,0.32234824,115840.0,115830.0,0.95964242]
[1758349341206,7.6e-05,115840.0,115830.0,0.95964242]
[1758349341499,0.32234824,115840.0,115830.0,0.95964242]
[1758349346347,7.6e-05,115840.0,115830.0,0.95964242]
[1758349353754,0.32234824,115840.0,115830.0,0.95964242]
[1758349363591,7.6e-05,115840.0,115830.0,0.95964242]
[1758349363726,0.32234824,115840.0,115830.0,0.95964242]
[1758349363927,7.6e-05,115840.0,115830.0,0.95964242]
[1758349364152,0.32234824,115840.0,115830.0,0.95964242]
[1758349376673,7.6e-05,115840.0,115830.0,0.95964242]
[1758349376872,0.32234824,115840.0,115830.0,0.95964242]
[1758349377912,0.32236232,115840.0,115830.0,0.95964242]
[1758349387061,7.6e-05,115840.0,115830.0,0.95964242]
[1758349387265,0.32236232,115840.0,115830.0,0.95964242]
[1758349388296,7.6e-05,115840.0,115830.0,0.95964242]
[1758349388922,7.6e-05,115840.0,115830.0,0.9855917]
[1758349404188,7.6e-05,115840.0,115830.0,0.9853917]
[1758349407162,7.6e-05,115840.0,115830.0,0.7174317]
[1758349407495,7.6e-05,115840.0,115830.0,0.9853917]
[1758349410755,0.32236232,115840.0,115830.0,0.7174317]
[1758349410966,0.32236232,115840.0,115830.0,0.9853917]
[1758349411170,0.30490495,115840.0,115830.0,0.9853917]
[1758349421306,0.05335038,115850.0,115840.0,0.17265193]
[1758349421508,0.3777767,115850.0,115840.0,0.5502516]
[1758349421913,0.3777767,115850.0,115840.0,0.5503516]
[1758349422119,0.3777767,115850.0,115840.0,0.5261216]
[1758349422522,0.3777767,115850.0,115840.0,0.5321216]
[1758349422934,0.3777767,115850.0,115840.0,0.5381216]
[1758349433133,0.3777767,115850.0,115840.0,0.5623516]
[1758349436568,0.3534467,115850.0,115840.0,0.5623516]
[1758349437614,0.3534467,115850.0,115840.0,0.5643216]
[1758349437826,0.35342655,115850.0,115840.0,0.5643216]
[1758349441294,0.35035655,115850.0,115840.0,0.5643216]
[1758349443138,0.34821655,115850.0,115840.0,0.5400916]
[1758349443344,0.34821655,115850.0,115840.0,0.5661116]
[1758349444469,0.02802038,115850.0,115840.0,0.5661116]
[1758349444793,0.35028655,115850.0,115840.0,0.5661116]
[1758349447389,0.3485081,115850.0,115840.0,0.5661116]
[1758349447845,0.3485081,115850.0,115840.0,0.5630616]
[1758349448056,0.3485081,115850.0,115840.0,0.55933804]
[1758349448308,0.3485081,115850.0,115840.0,0.55748861]
[1758349448542,0.3485081,115850.0,115840.0,0.55413906]
[1758349449326,0.3485081,115850.0,115840.0,0.53753137]
[1758349450817,0.3485081,115850.0,115840.0,0.53597706]
[1758349459338,0.34551872,115850.0,115840.0,0.53597706]
[1758349463219,0.34847872,115850.0,115840.0,0.53597706]
[1758349466169,0.34847872,115850.0,115840.0,0.53447029]
[1758349470565,0.34847872,115850.0,115840.0,0.53437029]
[1758349476521,0.34847872,115850.0,115840.0,0.53447029]
[1758349477565,0.34551872,115850.0,115840.0,0.53447029]
[1758349478490,0.34551872,115850.0,115840.0,0.53437029]
[1758349485844,0.34553772,115850.0,115840.0,0.53437029]
[1758349490979,0.34553772,115850.0,115840.0,0.53447029]
[1758349498626,0.02118255,115850.0,115840.0,0.56858219]
[1758349498831,0.32228517,115860.0,115850.0,0.20278893]
[1758349499078,0.34823135,115860.0,115850.0,0.5820386]
[1758349499279,0.34823135,115860.0,115850.0,0.5849886]
[1758349499906,0.34814322,115860.0,115850.0,0.5849886]
[1758349500096,0.34814322,115860.0,115850.0,0.5899886]
[1758349501120,0.34814322,115860.0,115850.0,0.5929886]
[1758349501322,0.35029322,115860.0,115850.0,0.5930886]
[1758349501544,0.67249026,115860.0,115850.0,0.5930886]
[1758349501745,0.67249026,115860.0,115850.0,0.8611886]
[1758349501977,0.67249026,115860.0,115850.0,0.8582386]
[1758349505069,0.67249026,115860.0,115850.0,0.65627505]
[1758349505340,0.67559026,115860.0,115850.0,0.92415505]
[1758349512941,0.67559026,115860.0,115850.0,0.90017505]
[1758349513140,0.67249026,115860.0,115850.0,0.92474505]
[1758349513756,0.02809618,115860.0,115850.0,0.92474505]
[1758349513932,0.67249026,115860.0,115850.0,0.92474505]
[1758349517828,0.67249026,115860.0,115850.0,0.65686505]
[1758349518128,0.67249026,115860.0,115850.0,0.92474505]
[1758349519107,0.67249026,115860.0,115850.0,0.92464505]
[1758349522425,0.67249026,115860.0,115850.0,0.92474505]
[1758349526688,0.67034026,115860.0,115850.0,0.92796505]
[1758349527146,0.67034026,115860.0,115850.0,1.02128505]
[1758349527344,0.67247026,115860.0,115850.0,1.01806505]
[1758349529081,0.67247026,115860.0,115850.0,0.75018505]
[1758349529378,0.67247026,115860.0,115850.0,1.01806505]
[1758349534712,0.67247026,115860.0,115850.0,0.75018505]
[1758349534862,0.67247026,115860.0,115850.0,1.01806505]
[1758349539233,0.64652408,115860.0,115850.0,1.01806505]
[1758349539691,0.64652408,115860.0,115850.0,1.01802505]
[1758349544950,0.64439408,115860.0,115850.0,1.01726505]
[1758349545156,0.64439408,115860.0,115850.0,1.02048505]
[1758349545359,0.64652408,115860.0,115850.0,1.02048505]
[1758349546389,0.64652408,115860.0,115850.0,1.01548505]
[1758349546692,0.64652408,115860.0,115850.0,1.02248505]
[1758349547034,0.64652408,115860.0,115850.0,1.01948505]
[1758349547952,0.64652408,115860.0,115850.0,1.02748505]
[1758349555954,0.32432704,115860.0,115850.0,1.02748505]
[1758349556373,0.64652408,115860.0,115850.0,1.02748505]
[1758349559838,0.32433661,115860.0,115850.0,1.02748505]
[1758349561487,0.32220661,115860.0,115850.0,1.02795505]
[1758349564067,0.32420661,115860.0,115850.0,1.02473505]
[1758349568376,0.00497,115860.0,115850.0,1.02473505]
[1758349568792,0.32717661,115860.0,115850.0,1.02473505]
[1758349570083,0.00497,115860.0,115850.0,1.02473505]
[1758349570278,0.32717661,115860.0,115850.0,1.02473505]
[1758349574848,0.32420661,115860.0,115850.0,1.02473505]
[1758349591955,0.002,115860.0,115850.0,1.02473505]
[1758349592156,0.32420661,115860.0,115850.0,1.02473505]
[1758349600243,0.35015279,115860.0,115850.0,1.02473505]
[1758349606795,1.23761175,115860.0,115850.0,0.72958967]
[1758349607044,1.0710653,115860.0,115850.0,0.9022267]
[1758349607235,1.06498962,115860.0,115850.0,0.8089067]
[1758349607640,1.23761175,115860.0,115850.0,0.8089067]
[1758349609000,1.21102153,115860.0,115850.0,0.8089067]
[1758349609416,1.21102153,115860.0,115850.0,0.8009067]
[1758349609619,1.21102153,115860.0,115850.0,0.7939067]
[1758349609837,1.21102153,115860.0,115850.0,0.7989067]
[1758349610091,1.21102153,115860.0,115850.0,0.8039067]
[1758349617136,1.21102153,115860.0,115850.0,0.63126967]
[1758349617366,1.21102153,115860.0,115850.0,0.8039067]
[1758349621562,0.88881492,115860.0,115850.0,0.8039067]
[1758349621775,1.21117769,115860.0,115850.0,0.8039067]
[1758349622474,0.36794618,115860.0,115850.0,0.8296967]
[1758349622702,1.01251556,115860.0,115850.0,0.8296967]
[1758349623143,1.18513769,115860.0,115850.0,0.8296967]
[1758349625041,0.862853,115860.0,115850.0,0.8296967]
[1758349625242,1.18513769,115860.0,115850.0,0.8296967]
[1758349625454,1.01251556,115860.0,115850.0,0.8296967]
[1758349625969,1.18513769,115860.0,115850.0,0.8296967]
[1758349628374,1.18832769,115860.0,115850.0,0.8296967]
[1758349634573,1.01570556,115860.0,115850.0,0.8296967]
[1758349634998,1.18832769,115860.0,115850.0,0.8296967]
[1758349635884,1.01570556,115860.0,115850.0,0.8296967]
[1758349636649,1.18832769,115860.0,115850.0,0.8296967]
[1758349637280,1.19440307,115860.0,115850.0,0.8296967]
[1758349638772,1.02178094,115860.0,115850.0,0.8296967]
[1758349639458,1.19440307,115860.0,115850.0,0.8296967]
[1758349639673,1.02178094,115860.0,115850.0,0.8296967]
[1758349653958,1.02178116,115860.0,115850.0,0.8296967]
[1758349655197,1.0216258,115860.0,115850.0,0.8296967]
[1758349657829,1.02162596,115860.0,115850.0,0.8296967]
[1758349660414,1.02162596,115860.0,115850.0,0.5618967]
[1758349660612,1.02162596,115860.0,115850.0,0.8296967]
[1758349677144,1.0123602,115860.0,115850.0,0.8059967]
[1758349677358,0.36594618,115860.0,115850.0,0.8320767]
[1758349677993,1.01051556,115860.0,115850.0,0.8320767]
[1758349678233,0.68823087,115860.0,115850.0,0.8320767]
[1758349679996,0.68823087,115860.0,115850.0,0.5642767]
[1758349680199,0.68823087,115860.0,115850.0,0.8320767]
[1758349681889,0.6881799,115860.0,115850.0,0.8320767]
[1758349682098,0.36594618,115860.0,115850.0,0.8320767]
[1758349682333,0.02594618,115860.0,115850.0,0.8320767]
[1758349682568,0.02594618,115860.0,115850.0,0.8622286]
[1758349689527,0.02594618,115860.0,115850.0,0.92628096]
[1758349699453,0.02594618,115860.0,115850.0,0.65848096]
[1758349699624,0.02594618,115860.0,115850.0,0.92624096]
[1758349700384,0.02594618,115860.0,115850.0,1.01956096]
[1758349706570,0.04318618,115860.0,115850.0,1.01956096]
[1758349710321,0.02594618,115860.0,115850.0,1.01956096]
[1758349710977,0.02594618,115860.0,115850.0,0.75180096]
[1758349711189,0.02594618,115860.0,115850.0,1.01956096]
[1758349712083,0.02594618,115860.0,115850.0,0.75180096]
[1758349712301,0.02594618,115860.0,115850.0,1.01956096]
[1758349713586,0.02594618,115860.0,115850.0,0.75180096]
[1758349713782,0.02594618,115860.0,115850.0,1.01956096]
[1758349716325,0.02594618,115860.0,115850.0,0.75180096]
[1758349716750,0.02594618,115860.0,115850.0,1.01956096]
[1758349717159,0.02594618,115860.0,115850.0,0.75180096]
[1758349717374,0.02594618,115860.0,115850.0,1.01956096]
[1758349717901,0.02594618,115860.0,115850.0,0.75180096]
[1758349718108,0.02594618,115860.0,115850.0,1.01956096]
[1758349721486,0.02594618,115860.0,115850.0,0.75180096]
[1758349721636,0.02594618,115860.0,115850.0,1.01956096]
[1758349726812,0.02594618,115860.0,115850.0,1.01964096]
[1758349727225,0.3481799,115860.0,115850.0,0.75180096]
[1758349727466,0.3503299,115860.0,115850.0,1.01661096]
[1758349731063,0.3503299,115860.0,115850.0,0.74877096]
[1758349731268,0.3503299,115860.0,115850.0,1.01661096]
[1758349742652,0.3503299,115860.0,115850.0,0.74877096]
[1758349742876,0.3503299,115860.0,115850.0,1.01657096]
[1758349743070,0.3534899,115860.0,115850.0,1.01657096]
[1758349743325,0.3534899,115860.0,115850.0,0.74877096]
[1758349743518,0.3534899,115860.0,115850.0,1.01657096]
[1758349743824,0.35348628,115860.0,115850.0,1.01657096]
[1758349749609,0.35032628,115860.0,115850.0,1.01657096]
[1758349755744,0.35348628,115860.0,115850.0,1.01657096]
[1758349756039,0.35032628,115860.0,115850.0,1.01657096]
[1758349757220,0.02809618,115860.0,115850.0,1.01657096]
[1758349757449,0.35032628,115860.0,115850.0,1.01657096]
[1758349767774,0.35032628,115860.0,115850.0,1.01963096]
[1758349791504,0.35032628,115860.0,115850.0,1.01657096]
[1758349797217,0.02809618,115860.0,115850.0,1.01657096]
[1758349797429,0.35032628,115860.0,115850.0,1.01657096]
[1758349801432,0.35032628,115860.0,115850.0,0.92325096]
[1758349805850,0.02809618,115860.0,115850.0,0.92325096]
[1758349806039,0.35031907,115860.0,115850.0,0.92325096]
[1758349811889,0.02809618,115860.0,115850.0,0.92325096]
[1758349812132,0.35031907,115860.0,115850.0,1.01657096]
[1758349825807,0.02809618,115860.0,115850.0,1.01657096]
[1758349825954,0.35031907,115860.0,115850.0,1.01657096]
[1758349836126,0.35031907,115860.0,115850.0,0.92325096]
[1758349860174,0.35031907,115860.0,115850.0,1.01657096]
[1758349864941,0.35031907,115860.0,115850.0,0.92325096]
[1758349867255,0.35031907,115860.0,115850.0,0.93325096]
[1758349867814,0.35031183,115860.0,115850.0,0.93325096]
[1758349869710,0.35031183,115860.0,115850.0,1.02657096]
[1758349870846,0.35031183,115860.0,115850.0,1.02977096]
[1758349879906,0.35031183,115860.0,115850.0,0.93645096]
[1758349909089,0.02809618,115860.0,115850.0,0.93645096]
[1758349909299,0.35031183,115860.0,115850.0,0.93645096]
[1758349910042,0.02809618,115860.0,115850.0,0.93645096]
[1758349910274,0.35031183,115860.0,115850.0,0.93645096]
[1758349923794,0.35031183,115860.0,115850.0,1.02977096]
[1758349929339,0.02809618,115860.0,115850.0,1.02977096]
[1758349929546,0.34816183,115860.0,115850.0,1.02977096]
[1758349929995,0.02594618,115860.0,115850.0,1.02977096]
[1758349958087,0.02594618,115860.0,115850.0,0.93645096]
[1758349964039,0.02594618,115860.0,115850.0,0.8723986]
[1758349972324,0.02594618,115860.0,115850.0,0.9657186]
[1758349991788,0.34814497,115860.0,115850.0,0.9657186]
[1758349994932,0.34814497,115860.0,115850.0,1.0289614]
[1758349997590,0.02594618,115860.0,115850.0,1.0289614]
[1758349997807,0.34814497,115860.0,115850.0,1.0289614]
[1758349998850,0.34814497,115860.0,115850.0,0.9356414]
[1758350003025,0.34814497,115860.0,115850.0,1.0289614]
[1758350008589,0.35027497,115860.0,115850.0,1.0289614]
[1758350010644,0.34814497,115860.0,115850.0,1.0289614]
[1758350015284,0.02594618,115860.0,115850.0,1.0289614]
[1758350023876,0.02594618,115860.0,115850.0,1.35116019]
[1758350029294,0.02594618,115860.0,115850.0,1.37710509]
[1758350030891,0.02594618,115860.0,115850.0,1.10930509]
[1758350031110,0.02594618,115860.0,115850.0,1.37694509]
[1758350032912,0.02594618,115860.0,115850.0,1.3855731]
[1758350034036,0.02594618,115860.0,115850.0,1.10930509]
[1758350034246,0.02594618,115860.0,115850.0,1.37694509]
[1758350034748,0.70412829,115880.0,115850.0,1.37694509]
[1758350034978,0.67687829,115880.0,115870.0,0.17260723]
[1758350035203,0.67900829,115880.0,115870.0,0.2578769]
[1758350035422,0.67900829,115880.0,115870.0,0.5255169]
[1758350035573,1.05440199,115880.0,115870.0,0.5255169]
[1758350036202,1.05440199,115880.0,115870.0,0.2578769]
[1758350036399,1.05440199,115880.0,115870.0,0.5255169]
[1758350036860,1.05440199,115880.0,115870.0,0.5295169]
[1758350037727,1.04832778,115880.0,115870.0,0.5295169]
[1758350038651,1.04832778,115880.0,115870.0,0.7976169]
[1758350043329,0.4039302,115880.0,115870.0,0.7976169]
[1758350043531,1.04832778,115880.0,115870.0,0.7976169]
[1758350053709,0.4039302,115880.0,115870.0,0.7976169]
[1758350053928,0.72606549,115880.0,115870.0,0.7976169]
[1758350054135,0.73213559,115880.0,115870.0,0.7976169]
[1758350055947,0.73213559,115880.0,115870.0,0.7936169]
[1758350056340,0.73213559,115880.0,115870.0,0.7986169]
[1758350056541,0.73213559,115880.0,115870.0,0.8026169]
[1758350056864,0.73213681,115880.0,115870.0,0.8026169]
[1758350057594,0.73213681,115880.0,115870.0,0.8263969]
[1758350060187,0.70784681,115880.0,115870.0,0.8263969]
[1758350067229,0.70784681,115880.0,115870.0,0.8285569]
[1758350068407,0.70784681,115880.0,115870.0,0.8026169]
[1758350068612,0.73261681,115880.0,115870.0,0.8025769]
[1758350082394,0.73261681,115880.0,115870.0,0.8267469]
[1758350084311,0.70784681,115880.0,115870.0,0.8267469]
[1758350086611,0.70784681,115880.0,115870.0,0.8289069]
[1758350090539,0.88043914,115880.0,115870.0,0.8289069]
[1758350091969,0.87183385,115880.0,115870.0,0.8289069]
[1758350092420,0.69924152,115880.0,115870.0,0.8289069]
[1758350093430,0.87183385,115880.0,115870.0,0.8289069]
[1758350096861,0.87183672,115880.0,115870.0,0.8289069]
[1758350098347,0.69628439,115880.0,115870.0,0.8289069]
[1758350099758,0.86887672,115880.0,115870.0,0.8289069]
[1758350105304,0.87210672,115880.0,115870.0,0.8289069]
[1758350112057,0.87210672,115880.0,115870.0,0.5613069]
[1758350112415,0.89681672,115880.0,115870.0,0.8267469]
[1758350115827,1.21901551,115880.0,115870.0,0.8267469]
[1758350117456,1.19430551,115880.0,115870.0,0.8267469]
[1758350121905,1.19430551,115880.0,115870.0,0.8288269]
[1758350126187,1.02171318,115880.0,115870.0,0.8288269]
[1758350127521,1.02171381,115880.0,115870.0,0.8288269]
[1758350129663,1.19430614,115880.0,115870.0,0.8288269]
[1758350131519,1.19430615,115880.0,115870.0,0.8288269]
[1758350139412,1.19430618,115880.0,115870.0,0.8288269]
[1758350146294,1.19430618,115880.0,115870.0,0.8267469]
[1758350146648,1.21900618,115880.0,115870.0,0.8267469]
[1758350147998,1.19430618,115880.0,115870.0,0.8267469]
[1758350148848,0.69418681,115880.0,115870.0,0.5624169]
[1758350153450,1.01635385,115880.0,115870.0,0.5624169]
[1758350154054,1.01635385,115880.0,115870.0,0.8305169]
[1758350155405,1.01635387,115880.0,115870.0,0.8305169]
[1758350158251,1.01845387,115880.0,115870.0,0.8275569]
[1758350158676,1.1942462,115880.0,115870.0,0.8046769]
[1758350158854,1.1942462,115880.0,115870.0,0.8025769]
[1758350159029,1.2172862,115880.0,115870.0,0.8025769]
[1758350159244,1.04469387,115880.0,115870.0,0.8025769]
[1758350160532,1.2172862,115880.0,115870.0,0.8025769]
[1758350162696,1.2172862,115880.0,115870.0,0.5349769]
[1758350162926,1.2169462,115880.0,115870.0,0.8025769]
[1758350177685,1.2169462,115880.0,115870.0,0.8274869]
[1758350177909,0.89478035,115880.0,115870.0,0.8274869]
[1758350179986,0.87208035,115880.0,115870.0,0.8274869]
[1758350181887,0.87208035,115880.0,115870.0,0.5598869]
[1758350182072,0.87208035,115880.0,115870.0,0.8274869]
[1758350183435,0.89478035,115880.0,115870.0,0.8274869]
[1758350183736,0.87208035,115880.0,115870.0,0.8274869]
[1758350185125,0.87208035,115880.0,115870.0,0.8296169]
[1758350195000,0.87208035,115880.0,115870.0,0.36236967]
[1758350195198,0.92168244,115880.0,115870.0,0.62996967]
[1758350195585,0.92168244,115880.0,115870.0,0.36186967]
[1758350198128,0.92168083,115880.0,115870.0,0.36186967]
[1758350203300,0.92168083,115880.0,115870.0,0.09426967]
[1758350203590,0.92168083,115880.0,115870.0,0.36186967]
[1758350203791,0.93787322,115880.0,115870.0,0.36186967]
[1758350204333,0.92168083,115880.0,115870.0,0.36186967]
[1758350204945,0.5995126,115880.0,115870.0,0.36186967]
[1758350205153,0.92168083,115880.0,115870.0,0.36186967]
[1758350207451,1.18928083,115880.0,115870.0,0.36186967]
[1758350213259,1.18928083,115880.0,115870.0,0.35786967]
[1758350213502,1.18928083,115880.0,115870.0,0.35286967]
[1758350213704,1.18928083,115880.0,115870.0,0.35686967]
[1758350218148,1.18320756,115880.0,115870.0,0.35686967]
[1758350218333,1.18927109,115880.0,115870.0,0.35686967]
[1758350221237,1.1892716,115880.0,115870.0,0.35686967]
[1758350224601,1.18927329,115880.0,115870.0,0.35686967]
[1758350228585,1.18927498,115880.0,115870.0,0.35686967]
[1758350230755,0.92167498,115880.0,115870.0,0.5294769]
[1758350230953,1.18927498,115880.0,115870.0,0.5294769]
[1758350231189,1.16626498,115880.0,115870.0,0.5522569]
[1758350231883,1.16626498,115880.0,115870.0,0.5542669]
[1758350232769,1.16626498,115880.0,115870.0,0.38165967]
[1758350232976,1.16626498,115880.0,115870.0,0.5542669]
[1758350233184,1.18246344,115880.0,115870.0,0.5542669]
[1758350234020,1.16626498,115880.0,115870.0,0.5542669]
[1758350234541,0.89866498,115880.0,115870.0,0.5542669]
[1758350235889,0.89546498,115880.0,115870.0,0.5542669]
[1758350239732,1.21768447,115880.0,115870.0,0.5542669]
[1758350240502,1.22070447,115880.0,115870.0,0.5542669]
[1758350243309,1.48830447,115880.0,115870.0,0.5542669]
[1758350253528,1.51096447,115880.0,115870.0,0.5542669]
[1758350257899,0.86657675,115880.0,115870.0,0.5522569]
[1758350258084,1.51096447,115880.0,115870.0,0.5522569]
[1758350258238,1.51096447,115880.0,115870.0,0.5294769]
[1758350258693,0.86657675,115880.0,115870.0,0.5294769]
[1758350258902,1.51096447,115880.0,115870.0,0.5294769]
[1758350261443,1.51096447,115880.0,115870.0,0.52974017]
[1758350262022,1.48437238,115880.0,115870.0,0.52974017]
[1758350263926,1.48437238,115880.0,115870.0,0.35713294]
[1758350264430,1.48437238,115880.0,115870.0,0.52974017]
[1758350265591,0.83998466,115880.0,115870.0,0.52974017]
[1758350265808,1.21677238,115880.0,115870.0,0.52974017]
[1758350266028,0.57238466,115880.0,115870.0,0.55395017]
[1758350266263,0.54670466,115880.0,115870.0,0.55590017]
[1758350266473,1.19109238,115880.0,115870.0,0.55590017]
[1758350270219,0.69630619,115880.0,115870.0,0.55590017]
[1758350270426,0.86889852,115880.0,115870.0,0.55590017]
[1758350270873,1.19109238,115880.0,115870.0,0.55590017]
[1758350277104,1.01850005,115880.0,115870.0,0.55590017]
[1758350277535,1.19109238,115880.0,115870.0,0.55590017]
[1758350278783,1.19410238,115880.0,115870.0,0.55590017]
[1758350287296,1.46198238,115880.0,115870.0,0.11569294]
[1758350287424,1.46198238,115880.0,115870.0,0.55618017]
[1758350287634,1.48603238,115880.0,115870.0,0.55618017]
[1758350289238,1.21815238,115880.0,115870.0,0.55618017]
[1758350294285,0.54971466,115880.0,115870.0,0.55618017]
[1758350294506,1.19410238,115880.0,115870.0,0.55618017]
[1758350297257,0.87190852,115880.0,115870.0,0.55618017]
[1758350297934,0.87190852,115880.0,115870.0,0.53197017]
[1758350298163,0.87190852,115880.0,115870.0,0.55546017]
[1758350298383,0.86889852,115880.0,115870.0,0.55546017]
[1758350298755,0.87199852,115880.0,115870.0,0.55546017]
[1758350299819,0.87196164,115880.0,115870.0,0.55546017]
[1758350304295,0.87196164,115880.0,115870.0,0.28758017]
[1758350304514,0.87196164,115880.0,115870.0,0.55351017]
[1758350305754,0.89545164,115880.0,115870.0,0.55351017]
[1758350310721,0.89545164,115880.0,115870.0,0.28563017]
[1758350310943,0.89545164,115880.0,115870.0,0.38090294]
[1758350311182,0.89545164,115880.0,115870.0,0.55351017]
[1758350315827,0.87196164,115880.0,115870.0,0.55351017]
[1758350316347,0.87196164,115880.0,115870.0,0.55359017]